bitfinex-derivatives/quotes_SOLF0:USTF0_20250110
["timestamp","ask_amount","ask_price","bid_price","bid_amount"]
[1736523450899,10.9573,186.06,185.91,32.46791853]
[1736523451612,2.6891,185.99,185.91,35.15801853]
[1736523451808,10.9573,186.06,185.91,35.15801853]
[1736523451809,10.9573,186.06,185.91,32.46791853]
[1736523452610,32.46791853,186.01,185.84,32.46791853]
[1736523453103,32.46791853,185.95,185.81,32.46791853]
[1736523453308,7.5968,185.94,185.8,0.20664]
[1736523453508,2.6909,185.86,185.8,0.20664]
[1736523453805,32.46791853,185.92,185.8,0.20664]
[1736523456608,6.02,185.91,185.8,0.20664]
[1736523457015,2.6911,185.84,185.8,0.20664]
[1736523457313,6.02,185.91,185.8,0.20664]
[1736523457513,2.6906,185.88,185.8,0.20664]
[1736523457714,6.02,185.91,185.8,0.20664]
[1736523458214,2.6914,185.82,185.8,0.20664]
[1736523459515,32.46791853,185.9,185.8,0.20664]
[1736523459718,2.6916,185.81,185.8,0.20664]
[1736523460017,32.46791853,185.9,185.8,0.20664]
[1736523461714,2.6916,185.81,185.8,0.20664]
[1736523462619,6.02,185.91,185.8,0.20664]
[1736523462918,3.0856,185.93,185.8,2.89834]
[1736523463108,2.691,185.85,185.8,2.89834]
[1736523463314,2.691,185.85,185.8,0.20664]
[1736523463510,3.0856,185.93,185.83,2.6913]
[1736523463712,32.46791853,185.97,185.81,32.46791853]
[1736523463909,9.1768,185.99,185.84,32.46791853]
[1736523464115,9.1768,185.99,185.87,2.6906]
[1736523464314,9.1768,185.99,185.84,32.46791853]
[1736523464616,9.1768,185.99,185.85,2.691]
[1736523464915,9.1768,185.99,185.81,32.46791853]
[1736523465128,2.6905,185.89,185.83,2.6912]
[1736523465312,2.6905,185.89,185.81,32.46791853]
[1736523465313,9.1768,185.99,185.81,32.46791853]
[1736523465711,2.691,185.85,185.8,0.20664]
[1736523465914,6.02,185.91,185.8,0.20664]
[1736523466111,1.5806,185.9,185.8,0.20664]
[1736523466717,2.6912,185.84,185.8,0.20664]
[1736523466917,1.5806,185.9,185.8,0.20664]
[1736523467313,2.6909,185.86,185.81,2.6915]
[1736523467513,1.5806,185.9,185.81,32.46791853]
[1736523467812,6.02,185.91,185.81,32.46791853]
[1736523468419,2.6905,185.89,185.83,2.6912]
[1736523468632,6.02,185.91,185.81,32.46791853]
[1736523468819,6.02,185.91,185.8,0.20664]
[1736523469321,2.6905,185.89,185.8,0.20664]
[1736523469719,1.6542,185.96,185.8,0.20664]
[1736523470023,6.02,185.95,185.8,0.20664]
[1736523470214,6.02,185.95,185.83,2.6912]
[1736523470816,32.46791853,185.94,185.8,0.20664]
[1736523471418,2.6914,185.82,185.8,0.20664]
[1736523471816,32.46791853,185.91,185.8,0.20664]
[1736523472019,2.6915,185.82,185.8,0.20664]
[1736523472420,32.46791853,185.91,185.8,0.20664]
[1736523472920,32.46791853,185.94,185.8,0.20664]
[1736523473123,32.46791853,185.94,185.81,2.6914]
[1736523473124,2.691,185.86,185.81,2.6914]
[1736523473320,32.46791853,185.94,185.81,2.6914]
[1736523473623,2.6903,185.9,185.8,2.89834]
[1736523473820,32.46791853,185.94,185.8,0.20664]
[1736523474022,32.46791853,185.91,185.8,0.20664]
[1736523474218,2.6913,185.83,185.8,0.20664]
[1736523474414,32.46791853,185.94,185.8,0.20664]
[1736523475020,32.46791853,185.91,185.8,0.20664]
[1736523475422,32.46791853,185.94,185.8,0.20664]
[1736523476135,32.46791853,185.91,185.75,32.46791853]
[1736523477022,32.46791853,185.88,185.72,32.46791853]
[1736523477324,10.7756,185.87,185.71,7.26108967]
[1736523477524,2.6918,185.8,185.75,2.6923]
[1736523477826,2.6918,185.8,185.72,32.46791853]
[1736523478021,10.7756,185.87,185.75,2.6923]
[1736523478219,10.7756,185.87,185.72,32.46791853]
[1736523478616,4.7756,185.87,185.75,32.46791853]
[1736523478822,2.6912,185.84,185.75,32.46791853]
[1736523479122,4.7756,185.87,185.78,32.46791853]
[1736523479519,3.2184,185.87,185.78,32.46791853]
[1736523479817,2.6905,185.89,185.81,32.46791853]
[1736523480218,1.5572,185.94,185.81,32.46791853]
[1736523480219,2.6909,185.86,185.81,32.46791853]
[1736523480425,1.5572,185.94,185.78,32.46791853]
[1736523480724,1.5572,185.94,185.82,32.46791853]
[1736523481018,5.3753,186.09,185.82,32.46791853]
[1736523481218,3.2292,186.02,185.89,2.6903]
[1736523481422,3.2292,186.02,185.88,32.46791853]
[1736523482326,32.46791853,186.01,185.86,2.6908]
[1736523482528,32.46791853,186.01,185.85,32.46791853]
[1736523482827,32.46791853,185.98,185.84,29.04435868]
[1736523483025,6.0,185.97,185.84,29.04435868]
[1736523483225,2.6906,185.88,185.84,29.04435868]
[1736523483425,6.0,185.97,185.82,32.46791853]
[1736523484327,2.691,185.85,185.78,32.46791853]
[1736523484527,32.46791853,185.95,185.79,2.6918]
[1736523484725,1.5981,185.94,185.78,32.46791853]
[1736523484924,1.5981,185.94,185.81,32.46791853]
[1736523485519,1.5981,185.94,185.84,32.46791853]
[1736523485724,2.6904,185.9,185.85,2.6909]
[1736523486028,1.5981,185.94,185.84,32.46791853]
[1736523486323,3.2292,186.02,185.87,32.46791853]
[1736523486524,7.5966,186.01,185.87,32.46791853]
[1736523487130,1.5966,186.01,185.9,32.46791853]
[1736523487630,1.5966,186.01,185.94,2.6896]
[1736523487931,3.2292,186.02,185.9,32.46791853]
[1736523488227,3.2292,186.02,185.92,2.6899]
[1736523490232,35.69711853,186.02,185.87,32.46791853]
[1736523490532,35.69711853,186.02,185.87,35.15861853]
[1736523490735,0.86456345,186.01,185.87,32.46791853]
[1736523490930,6.86456345,186.01,185.87,32.46791853]
[1736523491127,2.6897,185.94,185.9,2.6902]
[1736523491428,6.86456345,186.01,185.89,20.0012482]
[1736523491634,2.6896,185.95,185.9,2.6902]
[1736523491832,2.6896,185.95,185.89,20.0012482]
[1736523492026,2.6899,185.93,185.89,22.6915482]
[1736523492228,6.86456345,186.01,185.89,22.6915482]
[1736523492229,6.86456345,186.01,185.89,20.0012482]
[1736523492426,0.86456345,186.01,185.92,20.0012482]
[1736523492926,2.6889,186.0,185.94,2.6896]
[1736523493125,0.86456345,186.01,185.92,20.0012482]
[1736523493632,2.6893,185.97,185.92,20.0012482]
[1736523493827,1.07497984,186.05,185.92,20.0012482]
[1736523494532,2.6893,185.97,185.93,2.6898]
[1736523495125,1.07497984,186.05,185.92,20.0012482]
[1736523495332,1.07497984,186.05,185.95,2.6895]
[1736523495726,2.6889,186.0,185.96,2.6894]
[1736523496034,4.7942,186.08,185.95,20.0012482]
[1736523496229,10.7942,186.08,185.95,20.0012482]
[1736523496438,10.7942,186.08,185.98,2.6891]
[1736523496629,4.7942,186.08,185.98,20.0012482]
[1736523497033,3.1957,186.08,185.98,20.0012482]
[1736523497254,6.0,186.13,186.01,20.0012482]
[1736523497436,2.6876,186.09,186.04,2.6882]
[1736523497638,185.7432,186.26,186.07,20.0012482]
[1736523497845,0.86681238,186.21,186.07,20.0012482]
[1736523498136,28.82119918,186.25,186.1,20.0012482]
[1736523498351,0.86728849,186.24,186.1,20.0012482]
[1736523498534,2.6859,186.2,186.1,22.6884482]
[1736523498746,6.0,186.22,186.1,20.0012482]
[1736523499136,2.6863,186.18,186.13,2.6869]
[1736523499340,14.80966787,186.27,186.16,20.0012482]
[1736523499838,6.0,186.27,186.16,20.0012482]
[1736523500741,6.0,186.27,186.14,2.6868]
[1736523500940,2.6857,186.22,186.16,2.6865]
[1736523501232,6.0,186.27,186.16,20.0012482]
[1736523501438,2.685,186.26,186.2,2.6859]
[1736523501744,2.685,186.26,186.19,20.0012482]
[1736523502036,6.0,186.36,186.25,20.0012482]
[1736523502240,6.0,186.38,186.25,20.0012482]
[1736523502629,6.0,186.38,186.27,2.6849]
[1736523502831,9.2472,186.41,186.25,20.0012482]
[1736523503032,2.6835,186.38,186.28,22.6860482]
[1736523503333,6.0,186.58,186.35,20.0012482]
[1736523503536,20.0012482,186.54,186.38,20.0012482]
[1736523503736,0.86991415,186.4,186.35,20.0012482]
[1736523503935,0.87029235,186.57,186.38,20.0012482]
[1736523504137,1.07192625,186.58,186.41,20.0012482]
[1736523504138,3.952566,186.56,186.41,20.0012482]
[1736523504331,3.0823,186.56,186.38,20.0012482]
[1736523504556,20.0012482,186.54,186.38,20.0012482]
[1736523504838,20.0012482,186.51,186.35,20.0012482]
[1736523505041,1.5841,186.5,186.35,20.0012482]
[1736523505237,6.0,186.49,186.35,20.0012482]
[1736523505439,6.0,186.49,186.3,20.0012482]
[1736523505440,6.0,186.49,186.3,32.34547384]
[1736523505640,0.8632073,186.48,186.34,32.34547384]
[1736523505934,1.5841,186.5,186.3,32.34547384]
[1736523506130,9.0623,186.56,186.43,32.34547384]
[1736523506338,3.0823,186.56,186.43,32.34547384]
[1736523506547,0.8635544,186.55,186.49,32.34547384]
[1736523506744,3.0823,186.56,186.49,32.34547384]
[1736523507044,2.6813,186.52,186.49,32.34547384]
[1736523507233,3.0823,186.56,186.39,32.34547384]
[1736523507234,3.0823,186.56,186.46,32.34547384]
[1736523507648,2.6812,186.53,186.46,32.34547384]
[1736523507831,3.0823,186.56,186.46,32.34547384]
[1736523508542,3.0823,186.56,186.43,32.34547384]
[1736523508844,5.98,186.55,186.4,32.34547384]
[1736523509041,32.34547384,186.54,186.4,32.34547384]
[1736523509236,32.34547384,186.54,186.36,5.98]
[1736523509463,32.34547384,186.51,186.34,32.34547384]
[1736523509640,32.34547384,186.48,186.3,32.34547384]
[1736523509941,5.98,186.47,186.3,35.02997384]
[1736523510244,5.98,186.47,186.3,32.34547384]
[1736523510446,5.98,186.47,186.32,2.6842]
[1736523511138,1.6761,186.5,186.37,32.34547384]
[1736523511350,1.6761,186.5,186.4,32.34547384]
[1736523511535,3.0823,186.56,186.43,32.34547384]
[1736523511933,3.0823,186.56,186.4,32.34547384]
[1736523512140,2.6821,186.47,186.4,32.34547384]
[1736523512349,3.0823,186.56,186.4,32.34547384]
[1736523512737,3.0823,186.56,186.33,5.98]
[1736523512738,3.0823,186.56,186.43,32.34547384]
[1736523512947,3.0823,186.56,186.4,32.34547384]
[1736523513241,2.6821,186.47,186.4,32.34547384]
[1736523513843,3.0823,186.56,186.43,32.34547384]
[1736523514044,3.0823,186.56,186.45,2.6823]
[1736523514244,3.0823,186.56,186.43,32.34547384]
[1736523514741,3.0823,186.56,186.41,8.6628]
[1736523514931,3.0823,186.56,186.4,32.34547384]
[1736523515134,32.34547384,186.55,186.4,32.34547384]
[1736523515335,32.34547384,186.55,186.39,2.6831]
[1736523515336,32.34547384,186.55,186.37,32.34547384]
[1736523515533,3.0823,186.56,186.37,32.34547384]
[1736523515833,3.0823,186.56,186.4,32.34547384]
[1736523515834,32.34547384,186.55,186.4,32.34547384]
[1736523516039,38.32547384,186.55,186.4,32.34547384]
[1736523516549,1.07192625,186.58,186.49,32.34547384]
[1736523516941,1.07192625,186.58,186.46,32.34547384]
[1736523517540,1.07192625,186.58,186.49,32.34547384]
[1736523517848,1.07192625,186.58,186.43,32.34547384]
[1736523518045,1.5502,186.57,186.43,32.34547384]
[1736523518442,2.6822,186.46,186.4,32.34547384]
[1736523519047,1.5502,186.57,186.4,32.34547384]
[1736523520349,1.5502,186.57,186.4,35.02837384]
[1736523520556,32.34547384,186.53,186.37,32.34547384]
[1736523520745,32.34547384,186.53,186.38,2.6833]
[1736523520746,2.6824,186.45,186.38,2.6833]
[1736523520950,1.07192625,186.58,186.44,32.34547384]
[1736523521147,3.2099,186.64,186.52,32.34547384]
[1736523521345,2.6803,186.6,186.55,32.34547384]
[1736523521944,2.68,186.62,186.56,2.6807]
[1736523522564,2.6801,186.61,186.56,2.6807]
[1736523522849,2.6801,186.61,186.55,32.34547384]
[1736523523051,5.98,186.61,186.51,32.34547384]
[1736523523450,5.98,186.61,186.52,2.6813]
[1736523523651,2.6809,186.55,186.51,32.34547384]
[1736523524154,5.98,186.61,186.51,32.34547384]
[1736523524155,2.6804,186.58,186.51,32.34547384]
[1736523524447,5.98,186.65,186.54,32.34547384]
[1736523525351,1.6643,186.67,186.57,32.34547384]
[1736523525547,2.6795,186.65,186.59,2.6802]
[1736523525748,2.6795,186.65,186.6,32.34547384]
[1736523526455,1.6717,186.7,186.6,32.34547384]
[1736523526851,1.6717,186.7,186.57,32.34547384]
[1736523527553,1.6717,186.7,186.54,32.34547384]
[1736523527955,2.6794,186.66,186.54,32.34547384]
[1736523528156,32.34547384,186.68,186.51,32.34547384]
[1736523528380,32.34547384,186.65,186.51,32.34547384]
[1736523528661,7.6319,186.64,186.51,32.34547384]
[1736523529372,2.6809,186.55,186.51,32.34547384]
[1736523530158,2.6812,186.54,186.51,32.34547384]
[1736523530359,1.5965,186.63,186.51,32.34547384]
[1736523530854,1.5965,186.63,186.48,35.02727384]
[1736523531052,32.34547384,186.62,186.48,32.34547384]
[1736523531256,2.6815,186.51,186.48,32.34547384]
[1736523531456,32.34547384,186.62,186.48,32.34547384]
[1736523531653,32.34547384,186.62,186.42,5.98]
[1736523531654,2.6806,186.57,186.45,32.34547384]
[1736523531855,32.34547384,186.62,186.45,32.34547384]
[1736523532054,32.34547384,186.59,186.45,32.34547384]
[1736523532254,2.682,186.48,186.43,2.6825]
[1736523532553,5.98,186.55,186.4,32.34547384]
[1736523532748,1.5165,186.54,186.4,32.34547384]
[1736523532960,2.6824,186.45,186.4,35.02847384]
[1736523533251,1.5165,186.54,186.4,32.34547384]
[1736523533858,32.34547384,186.53,186.39,83.68]
[1736523534162,1.5165,186.54,186.4,32.34547384]
[1736523534554,5.98,186.55,186.43,32.34547384]
[1736523535156,2.6816,186.51,186.46,2.6821]
[1736523535762,1.5456,186.58,186.46,32.34547384]
[1736523535953,5.98,186.61,186.49,32.34547384]
[1736523536761,2.6811,186.54,186.49,32.34547384]
[1736523537155,5.98,186.61,186.46,32.34547384]
[1736523537850,5.98,186.61,186.46,39.60656351]
[1736523538051,5.98,186.61,186.46,7.26108967]
[1736523538052,2.6818,186.49,186.46,7.26108967]
[1736523538260,32.34547384,186.59,186.46,7.26108967]
[1736523538450,1.5253,186.58,186.46,7.26108967]
[1736523538655,2.6815,186.51,186.46,7.26108967]
[1736523538858,1.5253,186.58,186.46,7.26108967]
[1736523539051,1.5253,186.58,186.43,29.04435868]
[1736523539356,1.5253,186.58,186.45,2.6823]
[1736523539571,1.5253,186.58,186.43,29.04435868]
[1736523540063,32.34547384,186.56,186.43,29.04435868]
[1736523540369,32.34547384,186.56,186.44,12.03551217]
[1736523540552,32.34547384,186.53,186.44,12.03551217]
[1736523540756,2.6823,186.45,186.44,12.03551217]
[1736523540966,2.6823,186.45,186.44,1.217e-05]
[1736523541162,5.98,186.49,186.37,7.42477086]
[1736523541163,2.683,186.41,186.37,7.42477086]
[1736523541374,1.5167,186.48,186.37,7.42477086]
[1736523541677,2.6822,186.47,186.4,2.683]
[1736523541965,1.5167,186.48,186.39,32.34547384]
[1736523542161,2.6825,186.44,186.39,35.02857384]
[1736523542365,1.5167,186.48,186.36,36.99535502]
[1736523542861,37.70427384,186.66,186.39,32.34547384]
[1736523543068,3.1634,186.56,186.45,32.34547384]
[1736523543568,2.681,186.55,186.45,32.34547384]
[1736523543870,3.1634,186.56,186.45,32.34547384]
[1736523544069,1.5284,186.56,186.45,32.34547384]
[1736523544573,1.635,186.6,186.48,32.34547384]
[1736523545077,33.98047384,186.6,186.45,32.34547384]
[1736523545472,2.6816,186.51,186.45,35.02767384]
[1736523545659,5.98,186.54,186.42,32.34547384]
[1736523546970,5.98,186.54,186.39,32.34547384]
[1736523547177,5.98,186.54,186.42,32.34547384]
[1736523547573,1.5584,186.56,186.48,32.34547384]
[1736523547574,2.6808,186.56,186.48,32.34547384]
[1736523547866,2.6808,186.56,186.43,5.98]
[1736523547867,5.98,186.63,186.51,32.34547384]
[1736523548465,38.32547384,186.63,186.48,32.34547384]
[1736523548669,32.34547384,186.6,186.45,32.34547384]
[1736523549062,32.34547384,186.6,186.43,5.98]
[1736523549266,2.6819,186.49,186.44,2.6825]
[1736523549462,1.5209,186.59,186.42,90.43419122]
[1736523549666,32.34547384,186.57,186.42,32.34547384]
[1736523550566,1.5209,186.59,186.45,32.34547384]
[1736523550771,1.5209,186.59,186.48,32.34547384]
[1736523551064,2.6807,186.57,186.52,2.6813]
[1736523551265,1.6399,186.64,186.51,32.34547384]
[1736523551664,2.6803,186.6,186.55,2.6808]
[1736523551861,38.32547384,186.69,186.54,32.34547384]
[1736523552069,2.6801,186.61,186.56,2.6806]
[1736523552458,5.98,186.68,186.54,32.34547384]
[1736523552665,2.6804,186.59,186.54,35.02637384]
[1736523552965,32.34547384,186.66,186.48,32.34547384]
[1736523553365,2.6811,186.54,186.48,32.34547384]
[1736523553961,32.34547384,186.66,186.48,32.34547384]
[1736523554567,0.86350553,186.65,186.48,32.34547384]
[1736523554967,32.34547384,186.66,186.48,32.34547384]
[1736523555176,2.6809,186.55,186.51,2.6814]
[1736523555373,32.34547384,186.66,186.51,32.34547384]
[1736523555569,5.98,186.65,186.51,32.34547384]
[1736523555970,5.98,186.65,186.54,2.681]
[1736523556569,2.6803,186.59,186.54,2.681]
[1736523556783,2.6803,186.59,186.51,32.34547384]
[1736523556983,5.98,186.65,186.58,2.6803]
[1736523557276,1.5368,186.7,186.56,32.34547384]
[1736523557676,2.6794,186.66,186.61,2.68]
[1736523558079,1.5368,186.7,186.61,2.68]
[1736523558881,3.1658,186.72,186.62,2.6797]
[1736523559177,2.6792,186.67,186.62,2.6797]
[1736523559568,2.6792,186.67,186.63,2.6797]
[1736523559881,1.6076,186.72,186.59,32.34547384]
[1736523560472,2.679,186.69,186.59,32.34547384]
[1736523560781,3.1328,186.78,186.59,32.34547384]
[1736523560782,32.34547384,186.83,186.68,32.34547384]
[1736523560977,0.86420124,186.82,186.68,32.34547384]
[1736523561170,2.6776,186.78,186.71,32.34547384]
[1736523561377,0.86420124,186.82,186.66,32.34547384]
[1736523561378,1.5969,186.85,186.74,32.34547384]
[1736523561576,0.86450591,186.84,186.74,32.34547384]
[1736523561769,1.5969,186.85,186.74,32.34547384]
[1736523562081,0.86477089,186.84,186.74,32.34547384]
[1736523562282,0.86487713,186.85,186.8,32.34547384]
[1736523562474,86.46375633,186.86,186.8,32.34547384]
[1736523562686,2.6767,186.84,186.8,32.34547384]
[1736523562878,32.34547384,186.94,186.77,32.34547384]
[1736523563077,32.34547384,186.91,186.74,32.34547384]
[1736523563475,32.34547384,186.88,186.74,32.34547384]
[1736523563781,32.34547384,186.88,186.71,32.34547384]
[1736523563782,2.6777,186.78,186.71,32.34547384]
[1736523564081,38.30547384,186.88,186.71,32.34547384]
[1736523564407,0.86445395,186.87,186.71,32.34547384]
[1736523564883,1.5261,186.86,186.71,32.34547384]
[1736523565088,0.86445395,186.85,186.71,32.34547384]
[1736523565378,2.6778,186.77,186.71,32.34547384]
[1736523565611,3.2169,186.85,186.74,32.34547384]
[1736523565886,38.30547384,186.94,186.77,35.02317384]
[1736523566077,2.39750384,186.93,186.77,32.34547384]
[1736523566274,0.86360384,186.92,186.77,32.34547384]
[1736523566972,2.6763,186.87,186.77,32.34547384]
[1736523567178,32.34547384,186.91,186.75,32.34547384]
[1736523567377,1.6259,186.86,186.75,32.34547384]
[1736523568684,1.6259,186.86,186.72,32.34547384]
[1736523568881,1.6259,186.86,186.7,63.3254]
[1736523569083,2.6782,186.74,186.7,63.3254]
[1736523569288,32.34547384,186.84,186.7,63.3254]
[1736523569483,1.6199,186.83,186.7,63.3254]
[1736523569783,32.34547384,186.81,186.7,63.3254]
[1736523570083,1.6199,186.83,186.7,63.3254]
[1736523570385,0.86321519,186.82,186.7,63.3254]
[1736523570585,1.6199,186.83,186.7,63.3254]
[1736523571582,0.86378146,186.82,186.7,63.3254]
[1736523571782,1.6199,186.83,186.7,63.3254]
[1736523572285,2.6776,186.78,186.7,63.3254]
[1736523572687,2.6768,186.84,186.79,2.6774]
[1736523572981,32.34547384,186.96,186.82,32.34547384]
[1736523573184,0.86483285,186.95,186.85,32.34547384]
[1736523573387,32.34547384,186.99,186.85,35.02207384]
[1736523573687,0.86467099,186.98,186.85,32.34547384]
[1736523573886,0.86476912,186.98,186.85,35.02187384]
[1736523574282,2.6753,186.95,186.85,35.02197384]
[1736523574481,32.34547384,186.99,186.85,35.02197384]
[1736523574679,0.86520197,186.98,186.85,35.02197384]
[1736523574897,0.86520197,186.98,186.87,2.6763]
[1736523575188,32.34547384,187.02,186.85,32.34547384]
[1736523575382,2.6754,186.94,186.88,2.6761]
[1736523575800,5.96,187.01,186.85,32.34547384]
[1736523575979,2.6752,186.95,186.89,2.6759]
[1736523576395,38.30547384,187.02,186.88,32.34547384]
[1736523576590,38.30547384,187.02,186.88,35.02157384]
[1736523576783,5.96,187.02,186.88,32.34547384]
[1736523577189,2.6749,186.97,186.9,2.6757]
[1736523577381,5.96,187.02,186.88,32.34547384]
[1736523577782,5.96,187.03,186.88,32.34547384]
[1736523578086,2.6753,186.95,186.89,2.676]
[1736523578392,2.6749,186.97,186.86,2.6763]
[1736523578689,5.96,187.03,186.88,32.34547384]
[1736523578887,2.6757,186.91,186.85,35.02197384]
[1736523579082,32.34547384,187.02,186.85,32.34547384]
[1736523579281,32.34547384,186.99,186.85,32.34547384]
[1736523579488,32.34547384,186.96,186.82,32.34547384]
[1736523579687,3.2033,186.95,186.79,32.34547384]
[1736523579888,10.7295,186.95,186.79,32.34547384]
[1736523580184,2.6766,186.85,186.79,35.02277384]
[1736523580394,3.2033,186.95,186.82,32.34547384]
[1736523580596,33.92417384,187.01,186.85,32.34547384]
[1736523580791,0.86547296,187.0,186.88,32.34547384]
[1736523580989,38.30547384,187.07,186.91,32.34547384]
[1736523581195,4.00368173,187.06,186.91,32.34547384]
[1736523581388,2.6747,186.98,186.93,2.6754]
[1736523581785,3.1383,187.06,186.93,2.6754]
[1736523581991,3.1383,187.06,186.95,2.6751]
[1736523582289,1.5787,187.09,186.97,32.34547384]
[1736523582487,3.1474,187.09,186.94,32.34547384]
[1736523583096,2.6742,187.02,186.96,2.675]
[1736523583423,32.34547384,187.07,186.91,32.34547384]
[1736523583595,2.6748,186.98,186.91,32.34547384]
[1736523583800,32.34547384,187.07,186.91,32.34547384]
[1736523584000,5.96,187.03,186.91,32.34547384]
[1736523584196,2.6746,186.99,186.93,2.6753]
[1736523584788,2.6746,186.99,186.91,32.34547384]
[1736523584991,5.96,187.03,186.91,32.34547384]
[1736523585190,5.96,187.03,186.88,32.34547384]
[1736523585594,2.6751,186.96,186.9,2.6757]
[1736523585796,5.96,187.03,186.91,32.34547384]
[1736523585996,5.96,187.03,186.94,32.34547384]
[1736523586301,2.6743,187.01,186.94,32.34547384]
[1736523586590,1.5958,187.06,186.91,32.34547384]
[1736523587196,2.6748,186.98,186.93,2.6753]
[1736523587592,5.96,187.05,186.91,32.34547384]
[1736523587792,2.6749,186.97,186.91,32.34547384]
[1736523587998,5.96,187.05,186.91,32.34547384]
[1736523588399,2.6751,186.96,186.91,35.02117384]
[1736523589200,2.6753,186.95,186.91,32.34547384]
[1736523589406,5.96,187.05,186.88,32.34547384]
[1736523589407,32.34547384,187.04,186.88,32.34547384]
[1736523590008,2.6755,186.93,186.88,35.02157384]
[1736523590304,2.676,186.89,186.84,32.34547384]
[1736523590507,5.96,186.97,186.84,32.34547384]
[1736523590902,2.6756,186.93,186.84,32.34547384]
[1736523591104,5.96,186.97,186.84,32.34547384]
[1736523591512,5.96,186.97,186.88,2.6761]
[1736523592212,2.6758,186.91,186.85,2.6765]
[1736523592407,5.96,186.97,186.71,27.34989088]
[1736523592619,32.34547384,186.93,186.78,32.34547384]
[1736523593413,37.09077384,186.96,186.81,32.34547384]
[1736523593616,4.7453,186.96,186.85,32.34547384]
[1736523593916,3.1829,186.96,186.88,32.34547384]
[1736523594213,2.6755,186.93,186.88,35.02147384]
[1736523594410,4.8541,187.01,186.88,32.34547384]
[1736523594914,2.6756,186.92,186.88,32.34547384]
[1736523595119,2.6756,186.92,186.82,5.96]
[1736523595120,4.8541,187.01,186.85,32.34547384]
[1736523596614,4.8541,187.01,186.82,5.96]
[1736523596615,4.8541,187.01,186.88,32.34547384]
[1736523597211,1.5457,187.01,186.88,32.34547384]
[1736523597409,1.5457,187.01,186.85,32.34547384]
[1736523597813,1.5457,187.01,186.89,2.676]
[1736523598013,1.5457,187.01,186.85,32.34547384]
[1736523598414,2.6757,186.92,186.87,2.6763]
[1736523598617,32.34547384,186.99,186.82,32.34547384]
[1736523599118,32.34547384,186.96,186.79,32.34547384]
[1736523599312,1.6505,186.95,186.79,32.34547384]
[1736523599525,1.6505,186.95,186.82,2.677]
[1736523599718,32.34547384,186.93,186.79,32.34547384]
[1736523600327,32.34547384,186.9,186.77,0.31758]
[1736523600519,1.5855,186.89,186.77,0.31758]
[1736523601818,1.6397,186.94,186.79,32.34547384]
[1736523602014,32.34547384,186.96,186.82,32.34547384]
[1736523602215,32.34547384,186.96,186.77,0.31758]
[1736523602216,5.96,186.98,186.85,32.34547384]
[1736523602414,1.5955,187.0,186.85,32.34547384]
[1736523602722,1.5955,187.0,186.88,32.34547384]
[1736523603023,1.5955,187.0,186.85,32.34547384]
[1736523603215,5.96,187.03,186.85,32.34547384]
[1736523603420,32.34547384,187.05,186.88,32.34547384]
[1736523603629,32.34547384,187.08,186.91,32.34547384]
[1736523603816,2.6741,187.03,186.94,2.6753]
[1736523604019,32.34547384,187.08,186.91,32.34547384]
[1736523604438,32.34547384,187.08,186.97,2.6748]
[1736523604613,32.34547384,187.08,186.91,32.34547384]
[1736523605027,2.6746,186.99,186.93,2.6754]
[1736523605228,32.34547384,187.05,186.91,32.34547384]
[1736523605621,2.6744,187.01,186.91,32.34547384]
[1736523606327,2.674,187.04,186.94,32.34547384]
[1736523606721,2.674,187.04,186.97,2.6749]
[1736523606932,2.674,187.04,186.94,32.34547384]
[1736523607517,2.6744,187.01,186.94,32.34547384]
[1736523607720,32.34547384,187.08,186.94,32.34547384]
[1736523608028,32.34547384,187.08,186.96,2.6749]
[1736523608228,2.6743,187.01,186.96,2.6749]
[1736523608825,32.34547384,187.08,186.97,2.6747]
[1736523609028,38.28547384,187.11,186.94,32.34547384]
[1736523609223,0.86581649,187.1,186.94,32.34547384]
[1736523609422,0.86581649,187.1,186.98,2.6746]
[1736523610031,2.6739,187.04,186.99,2.6745]
[1736523610226,0.86611667,187.09,186.97,32.34547384]
[1736523610427,3.1323,187.12,187.0,32.34547384]
[1736523610626,1.5955,187.12,187.05,2.6737]
[1736523611125,1.5681,187.19,187.03,32.34547384]
[1736523611126,2.6726,187.13,187.03,32.34547384]